[Event "82nd Brazilian-ch 2015"]
[Site "Rio de Janeiro"]
[Date "2016.01.15"]
[Round "9"]
[White "Teixeira, Ricardo da Silva"]
[Black "Limp, Eduardo Thelio"]
[Result "1/2-1/2"]
[ECO "D02"]
[WhiteElo "2234"]
[BlackElo "2385"]
[PlyCount "143"]
[EventDate "2016.??.??"]
[EventCountry "BRA"]
[TimeControl "5400+30"]

1. d4 {[%emt 0:19:22]} d5 {[%emt 0:00:00]} 2. Nf3 {[%emt 0:00:28]} c6 {[%emt 0:
00:46]} 3. c4 {[%emt 0:01:06]} Nf6 {[%emt 0:00:09]} 4. Qc2 {[%emt 0:00:31]} g6
{[%emt 0:00:49]} 5. Bf4 {[%emt 0:00:14]} Bg7 {[%emt 0:01:22]} 6. cxd5 {[%emt 0:
03:33]} Nxd5 {[%emt 0:04:19]} 7. Bg3 {[%emt 0:02:11]} O-O {[%emt 0:00:34]} 8.
Nc3 {[%emt 0:01:10]} Nxc3 {[%emt 0:01:16]} 9. bxc3 {[%emt 0:00:25]} c5 {
[%emt 0:00:30]} 10. e3 {[%emt 0:00:59]} Nc6 {[%emt 0:00:34]} 11. Be2 {[%emt 0:
04:58]} cxd4 {[%emt 0:01:19]} 12. cxd4 {[%emt 0:00:40]} Qa5+ {[%emt 0:06:59]}
13. Qd2 {[%emt 0:01:05]} Qxd2+ {[%emt 0:00:09]} 14. Kxd2 {[%emt 0:03:39]} Rd8 {
[%emt 0:00:09]} 15. Kc3 {[%emt 0:05:24]} Bf5 {[%emt 0:00:28]} 16. Rac1 {
[%emt 0:00:39]} Rac8 {[%emt 0:03:15]} 17. Kb3 {[%emt 0:01:10]} Be4 {[%emt 0:00:
22]} 18. Rhd1 {[%emt 0:02:48]} Bd5+ {[%emt 0:03:27]} 19. Kb2 {[%emt 0:00:58]}
e6 {[%emt 0:04:05]} 20. Bh4 {[%emt 0:13:52]} f6 {[%emt 0:00:34]} 21. Bc4 {
[%emt 0:00:47]} Na5 {[%emt 0:02:09]} 22. Bxd5 {[%emt 0:00:33]} exd5 {[%emt 0:
00:07]} 23. Nd2 {[%emt 0:11:17]} Kf7 {[%emt 0:00:46]} 24. Bg3 {[%emt 0:00:03]}
b6 {[%emt 0:02:31]} 25. Rxc8 {[%emt 0:03:26]} Rxc8 {[%emt 0:00:09]} 26. Bd6 {
[%emt 0:00:20]} Ke6 {[%emt 0:00:50]} 27. Bb4 {[%emt 0:00:48]} Nc4+ {[%emt 0:00:
13]} 28. Nxc4 {[%emt 0:00:19]} Rxc4 {[%emt 0:00:07]} 29. Bd2 {[%emt 0:01:28]}
f5 {[%emt 0:01:18]} 30. Rc1 {[%emt 0:00:51]} b5 {[%emt 0:00:07]} 31. Rc3 {
[%emt 0:06:09]} Bf8 {[%emt 0:00:28]} 32. f3 {[%emt 0:01:36]} Bd6 {[%emt 0:03:
22]} 33. h3 {[%emt 0:01:18]} Kd7 {[%emt 0:00:31]} 34. Rxc4 {[%emt 0:01:45]}
bxc4 {[%emt 0:01:02]} 35. e4 {[%emt 0:01:57]} fxe4 {[%emt 0:00:37]} 36. fxe4 {
[%emt 0:00:12]} Ke6 {[%emt 0:00:05]} 37. e5 {[%emt 0:00:32]} Be7 {[%emt 0:02:
51]} 38. g4 {[%emt 0:00:25]} h5 {[%emt 0:00:31]} 39. Bc3 {[%emt 0:01:16]} hxg4
{[%emt 0:00:27]} 40. hxg4 {[%emt 0:00:09]} Kd7 {[%emt 0:00:45]} 41. Kc2 {
[%emt 0:00:39]} Kc6 {[%emt 0:00:10]} 42. a4 {[%emt 0:00:07]} a6 {[%emt 0:00:23]
} 43. Kd1 {[%emt 0:00:21]} Bd8 {[%emt 0:01:05]} 44. Ke2 {[%emt 0:00:31]} Kd7 {
[%emt 0:00:17]} 45. Kf3 {[%emt 0:00:36]} Ke6 {[%emt 0:00:23]} 46. Kf4 {[%emt 0:
00:44]} Be7 {[%emt 0:00:08]} 47. Kf3 {[%emt 0:00:22]} Kf7 {[%emt 0:00:11]} 48.
Ke2 {[%emt 0:00:35]} Kg7 {[%emt 0:00:16]} 49. Kd1 {[%emt 0:00:32]} Bg5 {
[%emt 0:01:19]} 50. Bd2 {[%emt 0:00:23]} Bh4 {[%emt 0:00:17]} 51. Be1 {[%emt 0:
00:32]} Bd8 {[%emt 0:00:50]} 52. Ke2 {[%emt 0:01:01]} Bb6 {[%emt 0:00:15]} 53.
Bc3 {[%emt 0:00:17]} Bd8 {[%emt 0:00:25]} 54. Bd2 {[%emt 0:00:29]} Be7 {
[%emt 0:00:11]} 55. Bc3 {[%emt 0:00:20]} Ba3 {[%emt 0:00:11]} 56. Kd1 {[%emt 0:
00:15]} Kf7 {[%emt 0:00:36]} 57. Kc2 {[%emt 0:00:18]} Ke6 {[%emt 0:00:07]} 58.
Bd2 {[%emt 0:00:32]} Be7 {[%emt 0:00:11]} 59. Kd1 {[%emt 0:00:17]} Kd7 {
[%emt 0:00:08]} 60. Ke2 {[%emt 0:00:35]} Kc6 {[%emt 0:00:14]} 61. Bc3 {[%emt 0:
00:37]} Bd8 {[%emt 0:00:19]} 62. Kf3 {[%emt 0:00:14]} Bh4 {[%emt 0:00:33]} 63.
Bd2 {[%emt 0:00:30]} Be7 {[%emt 0:00:13]} 64. Ke2 {[%emt 0:00:34]} Ba3 {
[%emt 0:00:25]} 65. Bc3 {[%emt 0:00:21]} Bc1 {[%emt 0:00:13]} 66. Kd1 {[%emt 0:
00:33]} Bf4 {[%emt 0:00:57]} 67. Ke2 {[%emt 0:01:44]} Kd7 {[%emt 0:00:17]} 68.
Bd2 {[%emt 0:00:31]} g5 {[%emt 0:00:17]} 69. Bc3 {[%emt 0:01:05]} Ke6 {[%emt 0:
00:12]} 70. Kd1 {[%emt 0:00:17]} Kd7 {[%emt 0:01:03]} 71. Kc2 {[%emt 0:00:26]}
Be3 {[%emt 0:00:19]} 72. Kd1 {[%emt 0:00:21]} 1/2-1/2

[Event "82nd Brazilian-ch 2015"]
[Site "Rio de Janeiro"]
[Date "2016.01.16"]
[Round "10"]
[White "Leitao, Rafael Duailibe"]
[Black "Santiago, Yago De Moura"]
[Result "1/2-1/2"]
[ECO "E15"]
[WhiteElo "2633"]
[BlackElo "2422"]
[PlyCount "86"]
[EventDate "2016.??.??"]
[EventCountry "BRA"]
[TimeControl "5400+30"]

1. d4 {[%emt 0:01:33]} Nf6 2. Nf3 e6 {[%emt 0:02:30]} 3. c4 {[%emt 0:01:01]} b6
{[%emt 0:00:05]} 4. g3 {[%emt 0:00:28]} Ba6 {[%emt 0:00:08]} 5. b3 {[%emt 0:02:
06]} Bb4+ {[%emt 0:00:24]} 6. Bd2 {[%emt 0:00:11]} Be7 {[%emt 0:00:08]} 7. Bg2
{[%emt 0:05:40]} c6 {[%emt 0:00:33]} 8. Bc3 {[%emt 0:00:53]} d5 {[%emt 0:00:10]
} 9. Ne5 {[%emt 0:01:39]} Nfd7 {[%emt 0:01:28]} 10. Nxd7 {[%emt 0:00:08]} Nxd7
{[%emt 0:00:08]} 11. Nd2 {[%emt 0:00:04]} O-O {[%emt 0:00:12]} 12. O-O {
[%emt 0:00:06]} Rc8 {[%emt 0:04:02]} 13. Re1 {[%emt 0:03:03]} c5 {[%emt 0:06:
08]} 14. cxd5 {[%emt 0:00:24]} exd5 {[%emt 0:00:08]} 15. a3 {[%emt 0:11:24]}
Nf6 {[%emt 0:00:45]} 16. Qb1 {[%emt 0:10:52]} Re8 {[%emt 0:07:55]} 17. Qb2 {
[%emt 0:01:38]} Bf8 {[%emt 0:00:15]} 18. dxc5 {[%emt 0:04:13]} bxc5 {[%emt 0:
01:11]} 19. Bxf6 {[%emt 0:01:21]} gxf6 {[%emt 0:00:51]} 20. e3 {[%emt 0:02:24]}
Bb7 {[%emt 0:10:15]} 21. Qc2 {[%emt 0:04:34]} Qb6 {[%emt 0:00:42]} 22. Rad1 {
[%emt 0:04:17]} Rcd8 {[%emt 0:01:43]} 23. Nb1 {[%emt 0:02:26]} d4 {[%emt 0:02:
22]} 24. Bxb7 {[%emt 0:02:24]} Qxb7 {[%emt 0:06:48]} 25. Nd2 {[%emt 0:06:20]}
d3 {[%emt 0:07:33]} 26. Qc4 {[%emt 0:02:59]} f5 {[%emt 0:00:12]} 27. Qf4 {
[%emt 0:02:01]} Rd5 {[%emt 0:01:11]} 28. Qf3 {[%emt 0:02:33]} Qd7 {[%emt 0:01:
01]} 29. e4 {[%emt 0:06:13]} Rde5 {[%emt 0:14:37]} 30. Re3 {[%emt 0:00:37]} Qe7
{[%emt 0:00:10]} 31. exf5 {[%emt 0:02:11]} Rxe3 {[%emt 0:00:08]} 32. Qxe3 {
[%emt 0:02:07]} Qxe3 {[%emt 0:00:21]} 33. fxe3 {[%emt 0:00:04]} Bh6 {[%emt 0:
02:27]} 34. e4 {[%emt 0:05:25]} Rb8 {[%emt 0:02:45]} 35. Kf2 {[%emt 0:07:01]}
Bxd2 {[%emt 0:00:18]} 36. Rxd2 {[%emt 0:00:03]} Rxb3 {[%emt 0:00:10]} 37. Ke3 {
[%emt 0:00:05]} c4 {[%emt 0:02:40]} 38. Ra2 {[%emt 0:01:46]} Rb1 {[%emt 0:16:
04]} 39. Kd2 {[%emt 0:00:18]} Kg7 {[%emt 0:01:26]} 40. Kc3 {[%emt 0:00:25]}
Rc1+ {[%emt 0:01:53]} 41. Kd2 {[%emt 0:00:10]} Rf1 {[%emt 0:01:55]} 42. Kc3 {
[%emt 0:00:46]} Rc1+ {[%emt 0:01:52]} 43. Kd2 {[%emt 0:00:04]} Rf1 1/2-1/2

[Event "82nd Brazilian-ch 2015"]
[Site "Rio de Janeiro"]
[Date "2016.01.16"]
[Round "10"]
[White "Limp, Eduardo Thelio"]
[Black "Barbosa, Evandro Amorim"]
[Result "0-1"]
[ECO "A48"]
[WhiteElo "2385"]
[BlackElo "2461"]
[PlyCount "68"]
[EventDate "2016.??.??"]
[EventCountry "BRA"]
[TimeControl "5400+30"]

1. d4 {[%emt 0:00:00]} Nf6 {[%emt 0:00:00]} 2. Nf3 {[%emt 0:00:00]} g6 {
[%emt 0:00:00]} 3. c3 {[%emt 0:00:20]} Bg7 {[%emt 0:00:14]} 4. Qc2 {[%emt 0:00:
08]} d5 {[%emt 0:00:15]} 5. Bf4 {[%emt 0:00:09]} O-O {[%emt 0:00:13]} 6. Nbd2 {
[%emt 0:00:07]} Nh5 {[%emt 0:00:35]} 7. Be5 {[%emt 0:00:10]} f6 {[%emt 0:00:13]
} 8. Bg3 {[%emt 0:00:09]} e5 {[%emt 0:00:10]} 9. dxe5 {[%emt 0:00:42]} Nxg3 {
[%emt 0:00:05]} 10. hxg3 {[%emt 0:00:26]} fxe5 11. e4 {[%emt 0:00:42]} c6 {
[%emt 0:00:13]} 12. O-O-O {[%emt 0:01:54]} Qe7 {[%emt 0:00:07]} 13. Bd3 {
[%emt 0:03:04]} Na6 {[%emt 0:06:27]} 14. Rde1 {[%emt 0:01:54]} Nc5 {[%emt 0:12:
48]} 15. exd5 {[%emt 0:00:18]} Nxd3+ {[%emt 0:04:07]} 16. Qxd3 {[%emt 0:00:25]}
Bf5 {[%emt 0:00:06]} 17. Qc4 {[%emt 0:11:05]} cxd5 {[%emt 0:04:08]} 18. Qxd5+ {
[%emt 0:01:12]} Be6 {[%emt 0:00:16]} 19. Qa5 {[%emt 0:07:03]} Rac8 {[%emt 0:01:
31]} 20. Ne4 {[%emt 0:00:32]} b6 {[%emt 0:03:55]} 21. Qa4 {[%emt 0:01:12]} b5 {
[%emt 0:07:57]} 22. Qxb5 {[%emt 0:00:19]} Bxa2 {[%emt 0:00:34]} 23. Nfg5 {
[%emt 0:02:16]} Bc4 {[%emt 0:06:49]} 24. Qa4 {[%emt 0:00:22]} h6 {[%emt 0:02:
04]} 25. Nf3 {[%emt 0:01:45]} Qe6 {[%emt 0:04:05]} 26. Rd1 {[%emt 0:04:03]} Rc6
{[%emt 0:06:52]} 27. Nd6 {[%emt 0:07:02]} Bd5 {[%emt 0:04:56]} 28. Rxd5 {
[%emt 0:04:26]} Qxd5 {[%emt 0:00:14]} 29. Rd1 {[%emt 0:00:06]} Qc5 {[%emt 0:02:
12]} 30. Qb3+ {[%emt 0:00:39]} Kh7 {[%emt 0:00:28]} 31. Rh1 {[%emt 0:04:07]}
Rxd6 {[%emt 0:06:41]} 32. Ng5+ {[%emt 0:03:08]} Kh8 {[%emt 0:00:33]} 33. Qb7 {
[%emt 0:00:39]} Qd5 {[%emt 0:01:54]} 34. Rxh6+ {[%emt 0:03:08]} Kg8 {[%emt 0:
00:05]} 0-1

[Event "82nd Brazilian-ch 2015"]
[Site "Rio de Janeiro"]
[Date "2016.01.16"]
[Round "10"]
[White "Macedo, Maximo Iack"]
[Black "Teixeira, Ricardo da Silva"]
[Result "0-1"]
[ECO "A91"]
[WhiteElo "2316"]
[BlackElo "2234"]
[PlyCount "56"]
[EventDate "2016.??.??"]
[EventCountry "BRA"]
[TimeControl "5400+30"]

1. d4 e6 2. c4 f5 3. g3 Nf6 4. Bg2 Be7 5. Nc3 O-O 6. Nf3 d6 7. O-O a5 8. Re1
Ne4 9. Qc2 Nxc3 10. Qxc3 Nc6 11. e4 e5 12. dxe5 dxe5 13. c5 Bf6 14. exf5 Bxf5
15. Qb3+ Kh8 16. Qxb7 Nb4 17. Nxe5 Rb8 18. Nc6 Rxb7 19. Nxd8 Rb5 20. a4 Rb8 21.
Nc6 Nc2 22. Bf4 Nxa1 23. Rxa1 Rxb2 24. Rc1 Re8 25. Nxa5 Bd4 26. Nc4 Rxf2 27.
Be3 Rxe3 28. Nxe3 Bxe3 0-1

[Event "82nd Brazilian-ch 2015"]
[Site "Rio de Janeiro"]
[Date "2016.01.16"]
[Round "10"]
[White "Mekhitarian, Krikor Sevag"]
[Black "Brito, Luismar"]
[Result "1-0"]
[ECO "B90"]
[WhiteElo "2555"]
[BlackElo "2235"]
[PlyCount "93"]
[EventDate "2016.??.??"]
[EventCountry "BRA"]
[TimeControl "5400+30"]

1. e4 {[%emt 0:05:07]} c5 {[%emt 0:00:00]} 2. Nf3 {[%emt 0:00:03]} d6 {[%emt 0:
00:00]} 3. d4 {[%emt 0:01:19]} cxd4 {[%emt 0:00:00]} 4. Nxd4 {[%emt 0:00:03]}
Nf6 {[%emt 0:00:01]} 5. Nc3 {[%emt 0:00:03]} a6 {[%emt 0:00:08]} 6. h3 {
[%emt 0:03:44]} e6 {[%emt 0:00:27]} 7. g4 {[%emt 0:00:04]} Nfd7 {[%emt 0:00:07]
} 8. Be3 {[%emt 0:03:16]} Qc7 {[%emt 0:02:04]} 9. Bg2 {[%emt 0:01:42]} Nc6 {
[%emt 0:00:28]} 10. O-O {[%emt 0:00:57]} Be7 {[%emt 0:00:38]} 11. Nce2 {
[%emt 0:00:50]} Nde5 {[%emt 0:03:33]} 12. c3 {[%emt 0:31:55]} Bd7 {[%emt 0:07:
52]} 13. f4 {[%emt 0:01:20]} Nc4 {[%emt 0:01:46]} 14. Bc1 {[%emt 0:00:26]} e5 {
[%emt 0:08:51]} 15. Nf5 {[%emt 0:02:05]} Qb6+ {[%emt 0:04:46]} 16. Kh2 {
[%emt 0:05:35]} g6 {[%emt 0:03:24]} 17. Nxe7 {[%emt 0:01:12]} Nxe7 {[%emt 0:00:
14]} 18. Rf3 {[%emt 0:16:39]} h5 {[%emt 0:08:49]} 19. g5 {[%emt 0:03:45]} Bg4 {
[%emt 0:03:04]} 20. Rd3 {[%emt 0:00:23]} exf4 {[%emt 0:00:23]} 21. Qa4+ {
[%emt 0:03:49]} Nc6 {[%emt 0:07:21]} 22. Nxf4 {[%emt 0:01:36]} N4e5 {[%emt 0:
01:54]} 23. Rg3 {[%emt 0:08:04]} h4 {[%emt 0:04:07]} 24. Re3 {[%emt 0:01:29]}
Be6 {[%emt 0:05:26]} 25. Nd5 {[%emt 0:00:37]} Qd8 {[%emt 0:00:21]} 26. Re2 {
[%emt 0:02:19]} Kf8 {[%emt 0:03:54]} 27. Bf4 {[%emt 0:00:02]} Nd3 {[%emt 0:00:
32]} 28. Be3 {[%emt 0:00:55]} Kg7 {[%emt 0:04:34]} 29. Rd1 {[%emt 0:00:20]}
Nde5 {[%emt 0:00:19]} 30. Nb6 {[%emt 0:01:59]} Rb8 {[%emt 0:00:44]} 31. Red2 {
[%emt 0:00:08]} Qc7 {[%emt 0:00:52]} 32. Nd5 {[%emt 0:01:13]} Qd8 {[%emt 0:01:
24]} 33. Nb6 {[%emt 0:00:23]} Qc7 {[%emt 0:00:16]} 34. Kh1 {[%emt 0:00:28]} Rh5
{[%emt 0:03:19]} 35. Rxd6 {[%emt 0:00:24]} Rd8 {[%emt 0:01:53]} 36. Rxd8 {
[%emt 0:00:21]} Nxd8 {[%emt 0:00:05]} 37. Qd4 {[%emt 0:01:34]} Ndc6 {[%emt 0:
00:31]} 38. Qd2 {[%emt 0:00:58]} Rh8 {[%emt 0:00:21]} 39. Nd5 {[%emt 0:00:07]}
Qd8 {[%emt 0:00:42]} 40. Qf2 {[%emt 0:00:13]} Rh5 {[%emt 0:01:12]} 41. Qf4 {
[%emt 0:00:34]} Rh8 {[%emt 0:02:19]} 42. Bb6 {[%emt 0:01:10]} Qe8 {[%emt 0:00:
54]} 43. b3 {[%emt 0:01:15]} Bc8 {[%emt 0:00:25]} 44. Qf6+ {[%emt 0:00:45]} Kh7
{[%emt 0:00:32]} 45. Qf2 {[%emt 0:00:21]} Kg7 {[%emt 0:00:07]} 46. Bc5 {
[%emt 0:00:24]} Qe6 {[%emt 0:00:14]} 47. Nc7 {[%emt 0:00:25]} 1-0

[Event "82nd Brazilian-ch 2015"]
[Site "Rio de Janeiro"]
[Date "2016.01.16"]
[Round "10"]
[White "Reis, Renan do Carmo"]
[Black "Santos, Marcus Vinicius M"]
[Result "0-1"]
[ECO "B06"]
[WhiteElo "2254"]
[BlackElo "2367"]
[PlyCount "68"]
[EventDate "2016.??.??"]
[EventCountry "BRA"]
[TimeControl "5400+30"]

1. e4 g6 2. d4 Bg7 3. Nc3 d6 4. Be3 a6 5. Qd2 b5 6. a4 b4 7. Nd1 Nf6 8. f3 a5
9. c3 bxc3 10. bxc3 O-O 11. Nf2 Nbd7 12. Bd3 e5 13. Ne2 d5 14. O-O Ba6 15. Bxa6
Rxa6 16. Bg5 Qa8 17. dxe5 Nxe5 18. Bxf6 Bxf6 19. Qxd5 Qa7 20. Nd4 Rd8 21. Qa2
Qc5 22. f4 Nd3 23. e5 Nxf2 24. Rxf2 Be7 25. Rf3 Rb6 26. Raf1 Rdb8 27. Qe2 Rb1
28. Qd3 Rxf1+ 29. Rxf1 Rb3 30. Rf3 Ra3 31. Qe3 Rxa4 32. f5 Qc4 33. e6 Ra1+ 34.
Kf2 Bh4+ 0-1

[Event "82nd Brazilian-ch 2015"]
[Site "Rio de Janeiro"]
[Date "2016.01.16"]
[Round "10"]
[White "Souza, Rafael Cabral de"]
[Black "Choma, Ernani Francisco"]
[Result "1/2-1/2"]
[ECO "B33"]
[WhiteElo "2159"]
[BlackElo "2383"]
[PlyCount "86"]
[EventDate "2016.??.??"]
[EventCountry "BRA"]
[TimeControl "5400+30"]

1. e4 {[%emt 0:12:09]} c5 {[%emt 0:00:00]} 2. Nf3 {[%emt 0:00:03]} Nc6 {
[%emt 0:00:00]} 3. Nc3 {[%emt 0:00:07]} Nf6 {[%emt 0:00:00]} 4. d4 {[%emt 0:02:
46]} cxd4 {[%emt 0:00:00]} 5. Nxd4 {[%emt 0:00:02]} e5 {[%emt 0:00:03]} 6. Ndb5
{[%emt 0:00:04]} d6 {[%emt 0:00:10]} 7. Bg5 {[%emt 0:01:02]} a6 {[%emt 0:00:06]
} 8. Na3 {[%emt 0:00:05]} b5 {[%emt 0:00:07]} 9. Nd5 {[%emt 0:00:03]} Be7 {
[%emt 0:00:10]} 10. Bxf6 {[%emt 0:00:02]} Bxf6 {[%emt 0:00:08]} 11. c4 {
[%emt 0:00:07]} b4 {[%emt 0:00:20]} 12. Nc2 {[%emt 0:00:01]} a5 {[%emt 0:00:08]
} 13. Qf3 {[%emt 0:00:18]} Be6 {[%emt 0:01:33]} 14. Rd1 {[%emt 0:01:38]} a4 15.
Ndxb4 Nxb4 {[%emt 0:14:07]} 16. Nxb4 {[%emt 0:30:59]} Qb8 {[%emt 0:05:52]} 17.
Qc3 {[%emt 0:29:11]} Qb7 18. Bd3 Bd8 {[%emt 0:42:06]} 19. O-O {[%emt 0:01:17]}
Ba5 {[%emt 0:00:49]} 20. a3 {[%emt 0:00:02]} O-O {[%emt 0:07:21]} 21. Be2 {
[%emt 0:03:35]} Qb6 {[%emt 0:03:41]} 22. Qd2 {[%emt 0:04:44]} Rfd8 {[%emt 0:00:
39]} 23. b3 {[%emt 0:03:56]} axb3 {[%emt 0:11:17]} 24. Rb1 {[%emt 0:00:22]}
Bxb4 {[%emt 0:01:49]} 25. Qxb4 {[%emt 0:01:13]} Qc6 {[%emt 0:01:06]} 26. Qxb3 {
[%emt 0:01:50]} Qxe4 {[%emt 0:01:28]} 27. Rfe1 {[%emt 0:04:36]} Rac8 {[%emt 0:
01:29]} 28. Bd3 {[%emt 0:02:13]} Qc6 {[%emt 0:00:57]} 29. Rbc1 {[%emt 0:00:53]}
Qc5 {[%emt 0:01:06]} 30. a4 {[%emt 0:01:06]} Rb8 {[%emt 0:01:59]} 31. Qc2 {
[%emt 0:00:22]} g6 {[%emt 0:00:43]} 32. Rb1 {[%emt 0:00:17]} Rdc8 {[%emt 0:01:
08]} 33. Rxb8 {[%emt 0:00:28]} Rxb8 {[%emt 0:00:05]} 34. Rb1 {[%emt 0:00:07]}
Rxb1+ {[%emt 0:03:11]} 35. Qxb1 {[%emt 0:00:01]} Bxc4 {[%emt 0:00:11]} 36. Bxc4
{[%emt 0:01:04]} Qxc4 {[%emt 0:00:04]} 37. a5 {[%emt 0:01:08]} Qa4 {[%emt 0:00:
39]} 38. Qe1 {[%emt 0:00:29]} Kf8 {[%emt 0:00:39]} 39. h3 {[%emt 0:00:04]} Ke7
{[%emt 0:00:22]} 40. Qd2 {[%emt 0:00:25]} Kd7 {[%emt 0:00:42]} 41. Qd5 {
[%emt 0:00:20]} Kc7 {[%emt 0:01:16]} 42. Qxf7+ {[%emt 0:00:12]} Qd7 {[%emt 0:
00:41]} 43. Qc4+ {[%emt 0:01:20]} Qc6 {[%emt 0:00:15]} 1/2-1/2

[Event "82nd Brazilian-ch 2015"]
[Site "Rio de Janeiro"]
[Date "2016.01.17"]
[Round "11"]
[White "Choma, Ernani Francisco"]
[Black "Reis, Renan do Carmo"]
[Result "1-0"]
[ECO "A14"]
[WhiteElo "2383"]
[BlackElo "2254"]
[PlyCount "67"]
[EventDate "2016.??.??"]
[EventCountry "BRA"]
[TimeControl "5400+30"]

1. Nf3 Nf6 2. c4 e6 3. g3 d5 4. Bg2 Be7 5. O-O O-O 6. b3 d4 7. Bb2 c5 8. e3 Nc6
9. exd4 cxd4 10. Re1 Bc5 11. Ne5 Nxe5 12. Rxe5 Qd6 13. Rxc5 Qxc5 14. Ba3 Qf5
15. Bxf8 Kxf8 16. d3 e5 17. Qe2 Qg5 18. Nd2 Bg4 19. Qe1 Rb8 20. h3 Bh5 21. g4
Bg6 22. Nf3 Qf4 23. Qxe5 Qxe5 24. Nxe5 Re8 25. f4 h5 26. g5 Rxe5 27. fxe5 Nd7
28. Bxb7 Bxd3 29. Rd1 Nxe5 30. Kf2 Ke7 31. Re1 f6 32. Be4 Kd6 33. gxf6 gxf6 34.
Rd1 {Kd5} 1-0

[Event "82nd Brazilian-ch 2015"]
[Site "Rio de Janeiro"]
[Date "2016.01.17"]
[Round "11"]
[White "Barbosa, Evandro Amorim"]
[Black "Macedo, Maximo Iack"]
[Result "1/2-1/2"]
[ECO "C66"]
[WhiteElo "2461"]
[BlackElo "2316"]
[PlyCount "24"]
[EventDate "2016.??.??"]
[EventCountry "BRA"]
[TimeControl "5400+30"]

1. e4 e5 2. Nf3 Nc6 3. Bb5 Nf6 4. d3 d6 5. c3 Bd7 6. O-O g6 7. Nbd2 Bg7 8. Re1
O-O 9. Nf1 Nh5 10. Bg5 Qc8 11. Ne3 Nd8 12. Bc4 Ne6 1/2-1/2

[Event "82nd Brazilian-ch 2015"]
[Site "Rio de Janeiro"]
[Date "2016.01.17"]
[Round "11"]
[White "Brito, Luismar"]
[Black "Leitao, Rafael Duailibe"]
[Result "1/2-1/2"]
[ECO "B44"]
[WhiteElo "2235"]
[BlackElo "2633"]
[PlyCount "71"]
[EventDate "2016.??.??"]
[EventCountry "BRA"]
[TimeControl "5400+30"]

1. e4 c5 2. Nf3 Nc6 3. d4 cxd4 4. Nxd4 e6 5. Nb5 d6 6. Bf4 e5 7. Be3 a6 8. N5c3
Nf6 9. Nd2 Ng4 10. Nc4 Nxe3 11. Nxe3 Be7 12. Ncd5 O-O 13. h4 Be6 14. c3 g6 15.
g3 b5 16. Bg2 Rb8 17. a3 Qd7 18. O-O Bd8 19. Qd3 f5 20. Nb4 f4 21. Ned5 a5 22.
Nxc6 Qxc6 23. Rad1 Rb7 24. gxf4 Bxh4 25. f5 Bxd5 26. Qxd5+ Qxd5 27. Rxd5 gxf5
28. exf5 Rg7 29. f4 Rxf5 30. Rxb5 Rxf4 31. Rxa5 Rxf1+ 32. Kxf1 Rf7+ 33. Kg1
Bf2+ 34. Kh1 Rf4 35. Bd5+ Kg7 36. Kg2 1/2-1/2

[Event "82nd Brazilian-ch 2015"]
[Site "Rio de Janeiro"]
[Date "2016.01.17"]
[Round "11"]
[White "Santos, Marcus Vinicius M"]
[Black "Limp, Eduardo Thelio"]
[Result "1-0"]
[ECO "D31"]
[WhiteElo "2367"]
[BlackElo "2385"]
[PlyCount "83"]
[EventDate "2016.??.??"]
[EventCountry "BRA"]
[TimeControl "5400+30"]

1. d4 d5 2. c4 e6 3. Nc3 Bb4 4. cxd5 exd5 5. Bf4 Ne7 6. Qa4+ Nbc6 7. e3 O-O 8.
Nf3 a6 9. Be2 Rb8 10. O-O Bd6 11. Bg3 Bxg3 12. hxg3 Qd6 13. Rac1 Bf5 14. Qb3 b5
15. Qd1 f6 16. Ne1 Na5 17. Bd3 Nc4 18. Qe2 Qe6 19. b3 Nd6 20. Qc2 c6 21. Ne2
Rfc8 22. Nf4 Qf7 23. Bxf5 Nexf5 24. Ned3 g5 25. Ne2 Qh5 26. Nc5 Nh6 27. f3 Qe8
28. Qd3 Ra8 29. g4 f5 30. gxf5 Ndxf5 31. e4 Nh4 32. Qe3 Qe7 33. Ng3 Rf8 34.
Rce1 Rae8 35. Qd2 dxe4 36. Ncxe4 N6f5 37. Nh5 Kh8 38. Nef6 Qf7 39. Rxe8 Rxe8
40. Nxe8 Qxh5 41. Qe2 Ng6 42. Qe6 1-0

[Event "82nd Brazilian-ch 2015"]
[Site "Rio de Janeiro"]
[Date "2016.01.17"]
[Round "11"]
[White "Santiago, Yago De Moura"]
[Black "Souza, Rafael Cabral de"]
[Result "1-0"]
[ECO "E63"]
[WhiteElo "2422"]
[BlackElo "2159"]
[PlyCount "117"]
[EventDate "2016.??.??"]
[EventCountry "BRA"]
[TimeControl "5400+30"]

1. d4 Nf6 2. c4 g6 3. Nc3 Bg7 4. Nf3 d6 5. g3 O-O 6. Bg2 Nc6 7. O-O a6 8. b3
Re8 9. Nd5 Ne4 10. Bb2 e6 11. Nc3 Nf6 12. d5 exd5 13. cxd5 Ne5 14. Nd4 Ned7 15.
Rc1 h5 16. Qc2 Re7 17. Nd1 Nf8 18. e4 N8h7 19. f4 Qe8 20. Nf2 Ng4 21. Nxg4 hxg4
22. Rce1 Nf6 23. e5 Nh7 24. e6 fxe6 25. Nxe6 Bxe6 26. Bxg7 Kxg7 27. dxe6 c6 28.
f5 Nf6 29. Qd2 gxf5 30. Rxf5 Nh7 31. Qd4+ Kg8 32. Qxg4+ Rg7 33. Qf4 Qe7 34. Rf7
Rxf7 35. exf7+ Qxf7 36. Qxd6 Rf8 37. Rf1 Nf6 38. g4 Qg7 39. Qe6+ Kh8 40. Qe5
Kg8 41. g5 Nh5 42. Rxf8+ Qxf8 43. Bh3 Ng7 44. Bg4 Qb4 45. Be6+ Nxe6 46. Qxe6+
Kg7 47. Qf6+ Kg8 48. g6 Qe1+ 49. Kg2 Qe4+ 50. Kg3 Qe1+ 51. Kg4 Qe4+ 52. Kg5
Qd5+ 53. Kf4 Qd2+ 54. Kf5 Qd5+ 55. Qe5 Qd3+ 56. Qe4 Qh3+ 57. Kf6 Qf1+ 58. Qf5
Qa1+ 59. Ke7 1-0